[Event "*** Titled Tuesday Blitz"]
[Site "Chess.com"]
[Date "2020.05.19"]
[Round "2"]
[White "AttilaTurzo"]
[Black "MrChampion_Coach"]
[Result "0-1"]
[WhiteElo "2491"]
[BlackElo "2299"]
[TimeControl "180+1"]
[EndTime "12:19:59 PDT"]
[Termination "MrChampion_Coach won on time"]

1. e4 {[%clk 0:03:00.9]} 1... c5 {[%clk 0:02:53.5]} 2. Nf3 {[%clk 0:03:00.8]}
2... d6 {[%clk 0:02:53.5]} 3. d4 {[%clk 0:03:01.2]} 3... cxd4 {[%clk 0:02:53.5]}
4. Nxd4 {[%clk 0:03:02.1]} 4... Nf6 {[%clk 0:02:53.9]} 5. Nc3 {[%clk 0:03:02.2]}
5... Nc6 {[%clk 0:02:54.4]} 6. Bg5 {[%clk 0:03:01.9]} 6... e6 {[%clk 0:02:54.4]}
7. Qd2 {[%clk 0:03:01.8]} 7... a6 {[%clk 0:02:54.7]} 8. O-O-O {[%clk 0:03:02.1]}
8... Bd7 {[%clk 0:02:54.9]} 9. f3 {[%clk 0:02:59.2]} 9... Nxd4 {[%clk
0:02:52.6]} 10. Qxd4 {[%clk 0:02:58.9]} 10... b5 {[%clk 0:02:53.5]} 11. Kb1
{[%clk 0:02:57.5]} 11... h6 {[%clk 0:02:48.9]} 12. Be3 {[%clk 0:02:55.9]} 12...
Qc7 {[%clk 0:02:47.8]} 13. Qd2 {[%clk 0:02:47.1]} 13... Be7 {[%clk 0:02:39.4]}
14. Bd3 {[%clk 0:02:37.6]} 14... b4 {[%clk 0:02:31.8]} 15. Ne2 {[%clk
0:02:34.9]} 15... a5 {[%clk 0:02:31.8]} 16. Nd4 {[%clk 0:02:32.3]} 16... Qb7
{[%clk 0:02:31.2]} 17. g4 {[%clk 0:02:26.7]} 17... a4 {[%clk 0:02:21.6]} 18. h4
{[%clk 0:02:25.4]} 18... b3 {[%clk 0:02:00.1]} 19. cxb3 {[%clk 0:02:25.1]} 19...
axb3 {[%clk 0:02:01]} 20. Nxb3 {[%clk 0:02:25.5]} 20... Ba4 {[%clk 0:01:34.4]}
21. Bc2 {[%clk 0:02:24.6]} 21... Nd7 {[%clk 0:01:32.6]} 22. Nc1 {[%clk
0:02:20.9]} 22... Bxc2+ {[%clk 0:01:27.3]} 23. Qxc2 {[%clk 0:02:21.8]} 23... O-O
{[%clk 0:01:27.4]} 24. g5 {[%clk 0:02:14.1]} 24... h5 {[%clk 0:01:23.4]} 25. Rd3
{[%clk 0:02:07.5]} 25... Rfc8 {[%clk 0:01:14]} 26. Rc3 {[%clk 0:02:05.8]} 26...
Ne5 {[%clk 0:01:03.1]} 27. Rf1 {[%clk 0:01:46.1]} 27... d5 {[%clk 0:00:56.7]}
28. exd5 {[%clk 0:01:43.4]} 28... Rxc3 {[%clk 0:00:56.2]} 29. Qxc3 {[%clk
0:01:42.2]} 29... Qxd5 {[%clk 0:00:56.4]} 30. Bd4 {[%clk 0:01:32.4]} 30... Nc4
{[%clk 0:00:51.8]} 31. Nb3 {[%clk 0:01:20.7]} 31... e5 {[%clk 0:00:40.6]} 32.
Rc1 {[%clk 0:01:20.1]} 32... Rc8 {[%clk 0:00:37.7]} 33. Bxe5 {[%clk 0:01:05.4]}
33... Na3+ {[%clk 0:00:36.8]} 34. bxa3 {[%clk 0:01:02.9]} 34... Rxc3 {[%clk
0:00:37.7]} 35. Bxc3 {[%clk 0:01:02.3]} 35... Qxf3 {[%clk 0:00:38.2]} 36. Nd4
{[%clk 0:00:57.5]} 36... Qe4+ {[%clk 0:00:37.6]} 37. Kb2 {[%clk 0:00:53.3]}
37... Bc5 {[%clk 0:00:35.3]} 38. Nb3 {[%clk 0:00:48.4]} 38... Bd6 {[%clk
0:00:30.3]} 39. Rd1 {[%clk 0:00:46.1]} 39... Bg3 {[%clk 0:00:24.3]} 40. Rd4
{[%clk 0:00:40.4]} 40... Qe2+ {[%clk 0:00:23.2]} 41. Kb1 {[%clk 0:00:38]} 41...
Kh7 {[%clk 0:00:19.4]} 42. a4 {[%clk 0:00:37.2]} 42... Qf1+ {[%clk 0:00:17.1]}
43. Kb2 {[%clk 0:00:35.5]} 43... Qf2+ {[%clk 0:00:16.4]} 44. Ka3 {[%clk
0:00:32.2]} 44... Bxh4 {[%clk 0:00:11.3]} 45. a5 {[%clk 0:00:26.6]} 45... Bxg5
{[%clk 0:00:10.9]} 46. a6 {[%clk 0:00:26.7]} 46... Be7+ {[%clk 0:00:10.5]} 47.
Bb4 {[%clk 0:00:23.8]} 47... Bxb4+ {[%clk 0:00:09.3]} 48. Kxb4 {[%clk 0:00:20]}
48... Qxa2 {[%clk 0:00:10.2]} 49. Na5 {[%clk 0:00:17.3]} 49... Qb2+ {[%clk
0:00:09.9]} 50. Nb3 {[%clk 0:00:17.4]} 50... Qa2 {[%clk 0:00:09.4]} 51. Na5
{[%clk 0:00:17]} 51... Qe6 {[%clk 0:00:08.7]} 52. Rc4 {[%clk 0:00:14]} 52...
Qxa6 {[%clk 0:00:08]} 53. Rc6 {[%clk 0:00:13.9]} 53... Qa8 {[%clk 0:00:06.4]}
54. Kb5 {[%clk 0:00:13.2]} 54... Qf8 {[%clk 0:00:06.4]} 55. Nc4 {[%clk 0:00:13]}
55... g6 {[%clk 0:00:06.8]} 56. Nd6 {[%clk 0:00:13.3]} 56... Qb8+ {[%clk
0:00:07]} 57. Kc5 {[%clk 0:00:13.2]} 57... Qa7+ {[%clk 0:00:06.5]} 58. Kd5
{[%clk 0:00:13.2]} 58... Qa1 {[%clk 0:00:06.7]} 59. Rc7 {[%clk 0:00:12.6]} 59...
Qa2+ {[%clk 0:00:06.3]} 60. Kc6 {[%clk 0:00:12.2]} 60... Kg7 {[%clk 0:00:07.2]}
61. Ne8+ {[%clk 0:00:09.8]} 61... Kf8 {[%clk 0:00:07]} 62. Nd6 {[%clk
0:00:09.3]} 62... Qa6+ {[%clk 0:00:07.4]} 63. Kd5 {[%clk 0:00:09]} 63... Qd3+
{[%clk 0:00:06.7]} 64. Kc6 {[%clk 0:00:08.7]} 64... Qe3 {[%clk 0:00:06.1]} 65.
Rxf7+ {[%clk 0:00:06.9]} 65... Kg8 {[%clk 0:00:07]} 66. Rd7 {[%clk 0:00:05.5]}
66... Qf3+ {[%clk 0:00:06.1]} 67. Kc7 {[%clk 0:00:04.7]} 67... h4 {[%clk
0:00:07]} 0-1

[Event "*** Titled Tuesday Blitz"]
[Site "Chess.com"]
[Date "2020.05.19"]
[Round "2"]
[White "Gvetadze"]
[Black "The_Chess_Coach"]
[Result "1-0"]
[WhiteElo "2408"]
[BlackElo "2135"]
[TimeControl "180+1"]
[EndTime "12:20:02 PDT"]
[Termination "Gvetadze won by checkmate"]

1. e4 {[%clk 0:03:00.9]} 1... e5 {[%clk 0:02:59.5]} 2. Nf3 {[%clk 0:03:00.9]}
2... Nc6 {[%clk 0:03:00]} 3. Bb5 {[%clk 0:03:00.6]} 3... a6 {[%clk 0:02:59.6]}
4. Ba4 {[%clk 0:03:00.4]} 4... Nf6 {[%clk 0:02:59.6]} 5. d3 {[%clk 0:03:00.6]}
5... d6 {[%clk 0:02:57]} 6. c3 {[%clk 0:02:59.6]} 6... g6 {[%clk 0:02:56.6]} 7.
Nbd2 {[%clk 0:02:59.5]} 7... Bg7 {[%clk 0:02:56.7]} 8. Nf1 {[%clk 0:02:59.3]}
8... O-O {[%clk 0:02:56.3]} 9. Ng3 {[%clk 0:02:59.2]} 9... b5 {[%clk 0:02:55.5]}
10. Bc2 {[%clk 0:02:58.5]} 10... d5 {[%clk 0:02:55.7]} 11. Qe2 {[%clk
0:02:57.9]} 11... Bb7 {[%clk 0:02:52.1]} 12. O-O {[%clk 0:02:57.7]} 12... Re8
{[%clk 0:02:48.1]} 13. a4 {[%clk 0:02:57.1]} 13... b4 {[%clk 0:02:46.2]} 14. Bd2
{[%clk 0:02:55.7]} 14... a5 {[%clk 0:02:42.6]} 15. Rfc1 {[%clk 0:02:54]} 15...
d4 {[%clk 0:02:30]} 16. cxb4 {[%clk 0:02:52.6]} 16... Nxb4 {[%clk 0:02:29.2]}
17. Bb3 {[%clk 0:02:51.9]} 17... Bf8 {[%clk 0:02:24.6]} 18. Ng5 {[%clk
0:02:47.3]} 18... Re7 {[%clk 0:01:59.4]} 19. f4 {[%clk 0:02:32.7]} 19... Nd7
{[%clk 0:01:10.9]} 20. f5 {[%clk 0:02:25]} 20... h6 {[%clk 0:01:07.6]} 21. Nxf7
{[%clk 0:02:23.8]} 21... Rxf7 {[%clk 0:01:02.9]} 22. fxg6 {[%clk 0:02:23.4]}
22... Kh8 {[%clk 0:00:59.7]} 23. gxf7 {[%clk 0:02:20.7]} 23... Ra6 {[%clk
0:00:47.2]} 24. Nf5 {[%clk 0:02:08.1]} 24... Rg6 {[%clk 0:00:44.1]} 25. Kh1
{[%clk 0:02:02.2]} 25... Kh7 {[%clk 0:00:37]} 26. Bc4 {[%clk 0:01:59.3]} 26...
Nc5 {[%clk 0:00:34.1]} 27. Bxb4 {[%clk 0:01:48]} 27... axb4 {[%clk 0:00:35]} 28.
Qh5 {[%clk 0:01:47]} 28... Rg5 {[%clk 0:00:27.4]} 29. Qh3 {[%clk 0:01:38.4]}
29... Qf6 {[%clk 0:00:25.8]} 30. Rf1 {[%clk 0:01:36]} 30... Qg6 {[%clk 0:00:25]}
31. Nh4 {[%clk 0:01:31.1]} 31... Qg7 {[%clk 0:00:23.7]} 32. Rf5 {[%clk
0:01:25.2]} 32... Rg4 {[%clk 0:00:22.1]} 33. Nf3 {[%clk 0:01:12]} 33... Bc8
{[%clk 0:00:21.1]} 34. Rxe5 {[%clk 0:00:53.6]} 34... Rg6 {[%clk 0:00:18.5]} 35.
Qxc8 {[%clk 0:00:49.8]} 35... Rxg2 {[%clk 0:00:17.6]} 36. Qh3 {[%clk 0:00:47.7]}
36... Rg6 {[%clk 0:00:14.8]} 37. Rg1 {[%clk 0:00:45.9]} 37... Rxg1+ {[%clk
0:00:14]} 38. Nxg1 {[%clk 0:00:45.6]} 38... Qxe5 {[%clk 0:00:14.7]} 39. Qg4
{[%clk 0:00:40.7]} 39... Qg5 {[%clk 0:00:14.2]} 40. Qxg5 {[%clk 0:00:36.8]}
40... hxg5 {[%clk 0:00:15.1]} 41. a5 {[%clk 0:00:35.7]} 41... b3 {[%clk
0:00:09.5]} 42. a6 {[%clk 0:00:33.3]} 42... Nd7 {[%clk 0:00:10.4]} 43. Bxb3
{[%clk 0:00:30.5]} 43... Nb6 {[%clk 0:00:11.3]} 44. Nf3 {[%clk 0:00:29.3]} 44...
Kg6 {[%clk 0:00:11]} 45. Nxd4 {[%clk 0:00:26.9]} 45... Kf6 {[%clk 0:00:11.2]}
46. Ne6 {[%clk 0:00:25.8]} 46... Kxf7 {[%clk 0:00:09.4]} 47. Nxg5+ {[%clk
0:00:23.5]} 47... Kg6 {[%clk 0:00:09.7]} 48. Ne6 {[%clk 0:00:23.3]} 48... Bd6
{[%clk 0:00:08.4]} 49. d4 {[%clk 0:00:23.2]} 49... Kf6 {[%clk 0:00:08.4]} 50.
e5+ {[%clk 0:00:22.9]} 50... Bxe5 {[%clk 0:00:09.3]} 51. dxe5+ {[%clk
0:00:23.2]} 51... Kxe5 {[%clk 0:00:10.2]} 52. Nxc7 {[%clk 0:00:23.2]} 52... Kd6
{[%clk 0:00:10]} 53. Nd5 {[%clk 0:00:22]} 53... Na8 {[%clk 0:00:06.1]} 54. h4
{[%clk 0:00:21.8]} 54... Kc5 {[%clk 0:00:06.1]} 55. h5 {[%clk 0:00:21.6]} 55...
Kb5 {[%clk 0:00:06.7]} 56. h6 {[%clk 0:00:21.2]} 56... Kxa6 {[%clk 0:00:07.6]}
57. h7 {[%clk 0:00:21.3]} 57... Nb6 {[%clk 0:00:05.6]} 58. Nxb6 {[%clk
0:00:20.7]} 58... Kxb6 {[%clk 0:00:06.5]} 59. h8=Q {[%clk 0:00:20.6]} 59... Ka5
{[%clk 0:00:07.4]} 60. Qc3+ {[%clk 0:00:20.1]} 60... Kb6 {[%clk 0:00:06.8]} 61.
Qb4+ {[%clk 0:00:19.9]} 61... Kc6 {[%clk 0:00:07.7]} 62. Ba4+ {[%clk 0:00:19.8]}
62... Kd5 {[%clk 0:00:07]} 63. Qc3 {[%clk 0:00:19.5]} 63... Ke4 {[%clk
0:00:07.9]} 64. Bc6+ {[%clk 0:00:19.1]} 64... Kf5 {[%clk 0:00:06.1]} 65. Qf3+
{[%clk 0:00:18.5]} 65... Ke5 {[%clk 0:00:06.9]} 66. Qd5+ {[%clk 0:00:18.3]}
66... Kf4 {[%clk 0:00:06.4]} 67. b4 {[%clk 0:00:18.8]} 67... Ke3 {[%clk
0:00:05.6]} 68. b5 {[%clk 0:00:19.7]} 68... Kf4 {[%clk 0:00:06.5]} 69. b6 {[%clk
0:00:19.5]} 69... Ke3 {[%clk 0:00:07.4]} 70. b7 {[%clk 0:00:19.4]} 70... Kf2
{[%clk 0:00:08.3]} 71. b8=Q {[%clk 0:00:19]} 71... Ke3 {[%clk 0:00:08.7]} 72.
Qbe5+ {[%clk 0:00:17.9]} 72... Kf2 {[%clk 0:00:09.6]} 73. Qf3# {[%clk
0:00:17.7]} 1-0

[Event "*** Titled Tuesday Blitz"]
[Site "Chess.com"]
[Date "2020.05.19"]
[Round "2"]
[White "GMaka"]
[Black "vpsetter"]
[Result "0-1"]
[WhiteElo "2431"]
[BlackElo "2667"]
[TimeControl "180+1"]
[EndTime "12:20:06 PDT"]
[Termination "vpsetter won on time"]

1. d4 {[%clk 0:03:00.9]} 1... Nf6 {[%clk 0:02:59.7]} 2. Bg5 {[%clk 0:02:59.8]}
2... d5 {[%clk 0:02:59.6]} 3. e3 {[%clk 0:02:59.6]} 3... c5 {[%clk 0:02:57.7]}
4. c3 {[%clk 0:02:59.3]} 4... Nc6 {[%clk 0:02:55.1]} 5. Nd2 {[%clk 0:02:56.2]}
5... e5 {[%clk 0:02:39.3]} 6. dxe5 {[%clk 0:02:36.2]} 6... Nxe5 {[%clk 0:02:39]}
7. Ngf3 {[%clk 0:02:36.5]} 7... Nc6 {[%clk 0:02:27.7]} 8. Bd3 {[%clk 0:02:04.9]}
8... Be7 {[%clk 0:02:26.8]} 9. O-O {[%clk 0:02:05]} 9... O-O {[%clk 0:02:23.5]}
10. Qc2 {[%clk 0:02:04]} 10... h6 {[%clk 0:02:23.2]} 11. Bh4 {[%clk 0:02:04.6]}
11... Be6 {[%clk 0:02:04.1]} 12. Rad1 {[%clk 0:01:58.2]} 12... Rc8 {[%clk
0:02:00.9]} 13. Rfe1 {[%clk 0:01:53.9]} 13... Ng4 {[%clk 0:01:53.1]} 14. Bg3
{[%clk 0:01:47.7]} 14... Bd6 {[%clk 0:01:23.9]} 15. Bf5 {[%clk 0:01:34.8]} 15...
Bxg3 {[%clk 0:01:20]} 16. hxg3 {[%clk 0:01:34.8]} 16... Qf6 {[%clk 0:01:14]} 17.
Bxe6 {[%clk 0:01:16.9]} 17... fxe6 {[%clk 0:01:13.8]} 18. e4 {[%clk 0:01:17.8]}
18... d4 {[%clk 0:01:08.7]} 19. cxd4 {[%clk 0:00:48.3]} 19... Nxd4 {[%clk
0:00:57]} 20. Qc4 {[%clk 0:00:34.7]} 20... b5 {[%clk 0:00:54.8]} 21. Qf1 {[%clk
0:00:27.3]} 21... c4 {[%clk 0:00:50.2]} 22. e5 {[%clk 0:00:20.4]} 22... Nxf3+
{[%clk 0:00:48.5]} 23. Nxf3 {[%clk 0:00:21.3]} 23... Qg6 {[%clk 0:00:36.3]} 24.
Qe2 {[%clk 0:00:19.9]} 24... Qh5 {[%clk 0:00:28.7]} 25. Rd4 {[%clk 0:00:13.3]}
25... Rf5 {[%clk 0:00:23.2]} 26. Nh4 {[%clk 0:00:13.3]} 26... Rxe5 {[%clk
0:00:20.8]} 27. Re4 {[%clk 0:00:06.9]} 27... Rxe4 {[%clk 0:00:19.3]} 28. Qxe4
{[%clk 0:00:07.8]} 28... e5 {[%clk 0:00:05.6]} 29. Qb7 {[%clk 0:00:07.6]} 29...
Rf8 {[%clk 0:00:05.3]} 30. f3 {[%clk 0:00:06.9]} 30... Nf6 {[%clk 0:00:05.4]}
31. Qxb5 {[%clk 0:00:06.5]} 31... Qg5 {[%clk 0:00:04.9]} 32. Qxc4+ {[%clk
0:00:06.8]} 32... Kh8 {[%clk 0:00:04.9]} 33. Qc1 {[%clk 0:00:07.2]} 33... Qxg3
{[%clk 0:00:04.5]} 34. Nf5 {[%clk 0:00:07.4]} 34... Qg6 {[%clk 0:00:04.6]} 35.
Ne7 {[%clk 0:00:06.1]} 35... Qf7 {[%clk 0:00:04.6]} 36. Rxe5 {[%clk 0:00:05.6]}
36... Re8 {[%clk 0:00:03.8]} 37. Qe3 {[%clk 0:00:05.4]} 37... Kh7 {[%clk
0:00:02.2]} 38. Qd3+ {[%clk 0:00:04.9]} 38... g6 {[%clk 0:00:02.7]} 39. Qe3
{[%clk 0:00:04.4]} 39... Ng8 {[%clk 0:00:02.1]} 40. Nc6 {[%clk 0:00:03.9]} 40...
Rxe5 {[%clk 0:00:02.3]} 41. Nxe5 {[%clk 0:00:04.8]} 41... Qxa2 {[%clk
0:00:01.8]} 42. Qe4 {[%clk 0:00:05]} 42... Qe6 {[%clk 0:00:01.7]} 43. Nd3 {[%clk
0:00:04.5]} 43... Qxe4 {[%clk 0:00:01.8]} 44. fxe4 {[%clk 0:00:05.4]} 44... Kg7
{[%clk 0:00:02.3]} 45. Kf2 {[%clk 0:00:04.8]} 45... Kf6 {[%clk 0:00:02.7]} 46.
Ke3 {[%clk 0:00:05.7]} 46... Ne7 {[%clk 0:00:02.8]} 47. Kd4 {[%clk 0:00:06.3]}
47... Ke6 {[%clk 0:00:03.2]} 48. Nc5+ {[%clk 0:00:06.1]} 48... Kd6 {[%clk
0:00:03.4]} 49. Nb7+ {[%clk 0:00:06.1]} 49... Kc7 {[%clk 0:00:02.7]} 50. Nc5
{[%clk 0:00:06]} 50... Kd6 {[%clk 0:00:03.2]} 51. e5+ {[%clk 0:00:06.3]} 51...
Kc6 {[%clk 0:00:03.3]} 52. Nd3 {[%clk 0:00:05.8]} 52... Nf5+ {[%clk 0:00:03.6]}
53. Ke4 {[%clk 0:00:06.2]} 53... Kd7 {[%clk 0:00:04.1]} 54. Nf4 {[%clk
0:00:06.3]} 54... Ne7 {[%clk 0:00:03.5]} 55. Kd4 {[%clk 0:00:04.9]} 55... g5
{[%clk 0:00:03.4]} 56. Nh5 {[%clk 0:00:04.4]} 56... Ke6 {[%clk 0:00:04]} 57.
Ng7+ {[%clk 0:00:04]} 57... Kf7 {[%clk 0:00:04.6]} 58. Nh5 {[%clk 0:00:04.5]}
58... Ke6 {[%clk 0:00:04.7]} 59. g4 {[%clk 0:00:04.7]} 59... Nc6+ {[%clk
0:00:04.2]} 60. Kc5 {[%clk 0:00:04.4]} 60... Nxe5 {[%clk 0:00:04.3]} 61. b4
{[%clk 0:00:01.5]} 61... Nxg4 {[%clk 0:00:04.5]} 0-1

[Event "*** Titled Tuesday Blitz"]
[Site "Chess.com"]
[Date "2020.05.19"]
[Round "2"]
[White "OhanyanEminChess"]
[Black "imdarealist"]
[Result "1-0"]
[WhiteElo "2449"]
[BlackElo "2224"]
[TimeControl "180+1"]
[EndTime "12:20:09 PDT"]
[Termination "OhanyanEminChess won by resignation"]

1. e4 {[%clk 0:03:00.9]} 1... e5 {[%clk 0:02:59.8]} 2. Nf3 {[%clk 0:03:00]} 2...
Nf6 {[%clk 0:03:00.1]} 3. Nxe5 {[%clk 0:02:57.2]} 3... d6 {[%clk 0:03:00.4]} 4.
Nf3 {[%clk 0:02:55.5]} 4... Nxe4 {[%clk 0:03:00.6]} 5. d4 {[%clk 0:02:55.5]}
5... d5 {[%clk 0:03:01.2]} 6. Bd3 {[%clk 0:02:55.1]} 6... Nd6 {[%clk 0:03:01.8]}
7. O-O {[%clk 0:02:55.3]} 7... Be7 {[%clk 0:03:02.4]} 8. Re1 {[%clk 0:02:55.4]}
8... O-O {[%clk 0:03:02.9]} 9. Bf4 {[%clk 0:02:55.4]} 9... Re8 {[%clk
0:03:00.7]} 10. Nbd2 {[%clk 0:02:54.8]} 10... Nd7 {[%clk 0:02:59.7]} 11. c3
{[%clk 0:02:54.2]} 11... Nf8 {[%clk 0:02:58.7]} 12. Qc2 {[%clk 0:02:53.5]} 12...
g6 {[%clk 0:02:56.2]} 13. Rac1 {[%clk 0:02:26.3]} 13... Ne6 {[%clk 0:02:53.3]}
14. Bh6 {[%clk 0:02:23.4]} 14... Ng7 {[%clk 0:02:50.2]} 15. Re2 {[%clk
0:02:16.1]} 15... Bf5 {[%clk 0:02:34.1]} 16. Rce1 {[%clk 0:02:09.5]} 16... Bf8
{[%clk 0:02:11.2]} 17. Rxe8 {[%clk 0:02:04.2]} 17... Ngxe8 {[%clk 0:02:06.7]}
18. Bxf8 {[%clk 0:02:02.9]} 18... Kxf8 {[%clk 0:02:07.2]} 19. Nf1 {[%clk
0:01:53]} 19... c6 {[%clk 0:01:58.9]} 20. Ng3 {[%clk 0:01:48.2]} 20... Bxd3
{[%clk 0:01:53.1]} 21. Qxd3 {[%clk 0:01:47.7]} 21... Nf6 {[%clk 0:01:52.6]} 22.
Ne5 {[%clk 0:01:28.8]} 22... Kg7 {[%clk 0:01:48.8]} 23. Qf3 {[%clk 0:01:23.6]}
23... Nd7 {[%clk 0:01:45.6]} 24. Qg4 {[%clk 0:00:51.6]} 24... Nf6 {[%clk
0:01:28.4]} 25. Qf3 {[%clk 0:00:47.6]} 25... Nd7 {[%clk 0:01:13.4]} 26. h4
{[%clk 0:00:46.9]} 26... Nf8 {[%clk 0:00:49.1]} 27. h5 {[%clk 0:00:40.9]} 27...
Qg5 {[%clk 0:00:47.7]} 28. Nd3 {[%clk 0:00:25.7]} 28... Re8 {[%clk 0:00:43.6]}
29. Rxe8 {[%clk 0:00:24.6]} 29... Nxe8 {[%clk 0:00:44.5]} 30. Qe2 {[%clk
0:00:22]} 30... Nd6 {[%clk 0:00:43.5]} 31. Ne5 {[%clk 0:00:15.8]} 31... Ne6
{[%clk 0:00:41.9]} 32. hxg6 {[%clk 0:00:06.1]} 32... hxg6 {[%clk 0:00:40.1]} 33.
Nd3 {[%clk 0:00:06.4]} 33... Qf6 {[%clk 0:00:30.7]} 34. a3 {[%clk 0:00:04.2]}
34... Qg5 {[%clk 0:00:27.6]} 35. Nf1 {[%clk 0:00:03.7]} 35... Ne4 {[%clk
0:00:27.3]} 36. f3 {[%clk 0:00:02.8]} 36... Nd6 {[%clk 0:00:24.9]} 37. Qe3
{[%clk 0:00:02.2]} 37... Nf5 {[%clk 0:00:24.3]} 38. Qxg5 {[%clk 0:00:02.1]}
38... Nxg5 {[%clk 0:00:25.2]} 39. Kf2 {[%clk 0:00:02.8]} 39... Ne6 {[%clk
0:00:25.2]} 40. Ne3 {[%clk 0:00:03.3]} 40... Nxe3 {[%clk 0:00:22.4]} 41. Kxe3
{[%clk 0:00:04.2]} 41... f6 {[%clk 0:00:19.9]} 42. Nb4 {[%clk 0:00:03.1]} 42...
Kf7 {[%clk 0:00:18.3]} 43. Nc2 {[%clk 0:00:03.5]} 43... Ke7 {[%clk 0:00:15.6]}
44. b4 {[%clk 0:00:03.4]} 44... Nd8 {[%clk 0:00:16]} 45. Kd3 {[%clk 0:00:02.6]}
45... Nf7 {[%clk 0:00:16.5]} 46. Ne3 {[%clk 0:00:02.4]} 46... Nd6 {[%clk
0:00:16.8]} 47. g4 {[%clk 0:00:02.5]} 47... Ke6 {[%clk 0:00:16.8]} 48. Ng2
{[%clk 0:00:02.5]} 48... g5 {[%clk 0:00:16.6]} 49. Ne3 {[%clk 0:00:03]} 49... f5
{[%clk 0:00:16.4]} 50. a4 {[%clk 0:00:03.5]} 50... f4 {[%clk 0:00:11.9]} 51. Nc2
{[%clk 0:00:03.2]} 51... Nc4 {[%clk 0:00:11.2]} 52. Na1 {[%clk 0:00:02.8]} 52...
Nb2+ {[%clk 0:00:10.3]} 53. Kc2 {[%clk 0:00:03.3]} 53... Nc4 {[%clk 0:00:10.9]}
54. Nb3 {[%clk 0:00:04.2]} 54... Ne3+ {[%clk 0:00:09.9]} 55. Kd3 {[%clk
0:00:04.7]} 55... Nc4 {[%clk 0:00:10.4]} 56. Nc5+ {[%clk 0:00:04.3]} 56... Ke7
{[%clk 0:00:08.1]} 57. Nxb7 {[%clk 0:00:04.1]} 57... Kd7 {[%clk 0:00:06.8]} 58.
Nc5+ {[%clk 0:00:03.9]} 58... Kd6 {[%clk 0:00:07.3]} 59. a5 {[%clk 0:00:03.9]}
59... Nb2+ {[%clk 0:00:06.5]} 60. Kc2 {[%clk 0:00:04]} 60... Nc4 {[%clk
0:00:07.4]} 61. Nb7+ {[%clk 0:00:04.1]} 61... Kc7 {[%clk 0:00:06.7]} 62. Nc5
{[%clk 0:00:05]} 62... Kd6 {[%clk 0:00:06.8]} 63. Kd1 {[%clk 0:00:03.6]} 63...
Ne3+ {[%clk 0:00:06.2]} 64. Ke2 {[%clk 0:00:03.9]} 64... Nc4 {[%clk 0:00:06.7]}
65. Nd3 {[%clk 0:00:04.1]} 65... Ne3 {[%clk 0:00:06]} 66. Ne1 {[%clk 0:00:04]}
66... Nc4 {[%clk 0:00:05.8]} 67. Nc2 {[%clk 0:00:04.4]} 67... Na3 {[%clk
0:00:06.3]} 68. Nxa3 {[%clk 0:00:04.1]} 68... Kc7 {[%clk 0:00:06.7]} 69. Kd3
{[%clk 0:00:05]} 69... Kd6 {[%clk 0:00:07.6]} 70. Kc2 {[%clk 0:00:05.5]} 70...
Kc7 {[%clk 0:00:08]} 71. Kb3 {[%clk 0:00:06.4]} 71... Kd6 {[%clk 0:00:08.9]} 72.
b5 {[%clk 0:00:06.8]} 72... Kc7 {[%clk 0:00:09.8]} 73. bxc6 {[%clk 0:00:07]}
73... Kxc6 {[%clk 0:00:10.7]} 74. Kb4 {[%clk 0:00:07.9]} 74... a6 {[%clk
0:00:10]} 75. c4 {[%clk 0:00:08.8]} 75... Kd6 {[%clk 0:00:10.2]} 76. c5+ {[%clk
0:00:09]} 76... Kc6 {[%clk 0:00:11.1]} 77. Nb1 {[%clk 0:00:08.6]} 77... Kc7
{[%clk 0:00:11.5]} 78. Nc3 {[%clk 0:00:08.9]} 78... Kc6 {[%clk 0:00:12.4]} 79.
Kb3 {[%clk 0:00:09.8]} 1-0